[Event "Kvibergspelen 2022"]
[Site "Kviberg Park Hotel & Conference, Krutvagen 2, Gothenburg, Sweden"]
[Date "2022.09.30"]
[Round "2.1"]
[White "Agdestein, Simen"]
[Black "Dingertz, Erik"]
[Result "1-0"]
[TimeControl "15 minutes + 5 seconds per move from move one (Round 1 - 4) / 90 minutes + 30 seconds per move from move one (Round 5 - 8)"]
[WhiteTitle "GM"]
[WhiteFideId "1500015"]
[BlackFideId "1741578"]
[WhiteElo "2576"]
[BlackElo "2001"]

1. e4 {[%clk 00:15:07]} {[%emt 00:00:02]} e5 {[%clk 00:15:08]} {[%emt
00:00:02]} 2. Nf3 {[%clk 00:15:10]} {[%emt 00:00:01]} Nc6 {[%clk 00:15:12]}
{[%emt 00:00:02]} 3. Bb5 {[%clk 00:15:14]} {[%emt 00:00:01]} a6 {[%clk
00:15:15]} {[%emt 00:00:02]} 4. Ba4 {[%clk 00:15:18]} Nf6 {[%clk 00:15:19]}
{[%emt 00:00:01]} 5. O-O {[%clk 00:15:21]} {[%emt 00:00:02]} b5 {[%clk
00:15:21]} {[%emt 00:00:03]} 6. Bb3 {[%clk 00:15:25]} Bc5 {[%clk 00:15:24]}
{[%emt 00:00:02]} 7. c3 {[%clk 00:15:26]} {[%emt 00:00:04]} d6 {[%clk
00:15:28]} {[%emt 00:00:01]} 8. d4 {[%clk 00:15:21]} {[%emt 00:00:10]} Bb6
{[%clk 00:15:32]} 9. a4 {[%clk 00:15:24]} {[%emt 00:00:02]} Bb7 {[%clk
00:15:35]} {[%emt 00:00:01]} 10. Re1 {[%clk 00:15:06]} {[%emt 00:00:23]} O-O
{[%clk 00:15:28]} {[%emt 00:00:12]} 11. h3 {[%clk 00:14:23]} {[%emt 00:00:48]}
Re8 {[%clk 00:15:23]} {[%emt 00:00:11]} 12. d5 {[%clk 00:14:08]} {[%emt
00:00:20]} Ne7 {[%clk 00:15:26]} {[%emt 00:00:02]} 13. c4 {[%clk 00:13:40]}
{[%emt 00:00:33]} c6 {[%clk 00:13:46]} {[%emt 00:01:45]} 14. dxc6 {[%clk
00:06:37]} {[%emt 00:07:08]} Bxc6 {[%clk 00:13:40]} {[%emt 00:00:11]} 15. axb5
{[%clk 00:06:41]} axb5 {[%clk 00:13:42]} {[%emt 00:00:02]} 16. Rxa8 {[%clk
00:06:45]} Bxa8 {[%clk 00:13:29]} {[%emt 00:00:18]} 17. Nc3 {[%clk 00:06:10]}
{[%emt 00:00:39]} Ba5 {[%clk 00:12:50]} {[%emt 00:00:45]} 18. cxb5 {[%clk
00:05:50]} {[%emt 00:00:26]} Bxc3 {[%clk 00:12:31]} {[%emt 00:00:24]} 19. bxc3
{[%clk 00:05:53]} {[%emt 00:00:01]} Nxe4 {[%clk 00:12:35]} {[%emt 00:00:01]} 20.
Ng5 {[%clk 00:04:52]} {[%emt 00:01:06]} Nxg5 {[%clk 00:11:28]} {[%emt
00:01:12]} 21. Bxg5 {[%clk 00:04:57]} Qc7 {[%clk 00:11:00]} {[%emt 00:00:33]}
22. Qd3 {[%clk 00:04:45]} {[%emt 00:00:17]} Rc8 {[%clk 00:07:40]} {[%emt
00:03:25]} 23. c4 {[%clk 00:04:16]} {[%emt 00:00:34]} h6 {[%clk 00:05:45]}
{[%emt 00:02:01]} 24. Be3 {[%clk 00:04:18]} {[%emt 00:00:02]} Qb7 {[%clk
00:04:04]} {[%emt 00:01:46]} 25. f3 {[%clk 00:04:14]} {[%emt 00:00:09]} d5
{[%clk 00:04:08]} {[%emt 00:00:02]} 26. c5 {[%clk 00:04:00]} {[%emt 00:00:18]}
d4 {[%clk 00:04:12]} {[%emt 00:00:02]} 27. c6 {[%clk 00:04:04]} Nxc6 {[%clk
00:03:36]} {[%emt 00:00:42]} 28. bxc6 {[%clk 00:04:04]} {[%emt 00:00:04]} Rxc6
{[%clk 00:03:40]} {[%emt 00:00:02]} 29. Bxd4 {[%clk 00:03:21]} {[%emt
00:00:48]} Qd7 {[%clk 00:01:14]} {[%emt 00:02:30]} 30. Rxe5 {[%clk 00:03:23]}
{[%emt 00:00:03]} Rd6 {[%clk 00:01:19]} 31. Qe3 {[%clk 00:03:21]} {[%emt
00:00:06]} Rxd4 {[%clk 00:01:18]} {[%emt 00:00:06]} 32. Re8+ {[%clk 00:03:17]}
{[%emt 00:00:09]} Kh7 {[%clk 00:01:22]} {[%emt 00:00:02]} 33. Rxa8 {[%clk
00:02:57]} {[%emt 00:00:25]} Rd3 {[%clk 00:01:00]} {[%emt 00:00:27]} 34. Bc2
{[%clk 00:02:58]} {[%emt 00:00:03]} 1-0

[Event "Kvibergspelen 2022"]
[Site "Kviberg Park Hotel & Conference, Krutvagen 2, Gothenburg, Sweden"]
[Date "2022.09.30"]
[Round "2.2"]
[White "Eriksson, Lennarth"]
[Black "Hillarp, Tiger"]
[Result "0-1"]
[TimeControl "15 minutes + 5 seconds per move from move one (Round 1 - 4) / 90 minutes + 30 seconds per move from move one (Round 5 - 8)"]
[BlackTitle "GM"]
[WhiteFideId "1707736"]
[BlackFideId "1700812"]
[WhiteElo "2000"]
[BlackElo "2511"]

1. Nf3 {[%clk 00:15:04]} {[%emt 00:00:06]} d5 {[%clk 00:15:02]} {[%emt
00:00:09]} 2. c4 {[%clk 00:14:59]} {[%emt 00:00:10]} d4 {[%clk 00:15:04]}
{[%emt 00:00:02]} 3. e3 {[%clk 00:14:44]} {[%emt 00:00:21]} Nc6 {[%clk
00:14:59]} {[%emt 00:00:10]} 4. exd4 {[%clk 00:13:40]} {[%emt 00:01:09]} Nxd4
{[%clk 00:15:02]} {[%emt 00:00:02]} 5. Nxd4 {[%clk 00:13:02]} {[%emt 00:00:43]}
Qxd4 {[%clk 00:15:04]} {[%emt 00:00:02]} 6. Be2 {[%clk 00:12:57]} {[%emt
00:00:11]} g6 {[%clk 00:14:32]} {[%emt 00:00:37]} 7. Nc3 {[%clk 00:12:38]}
{[%emt 00:00:24]} c6 {[%clk 00:14:33]} {[%emt 00:00:03]} 8. b3 {[%clk
00:11:56]} {[%emt 00:00:47]} Bg7 {[%clk 00:14:14]} {[%emt 00:00:24]} 9. Bb2
{[%clk 00:11:56]} {[%emt 00:00:05]} Qd8 {[%clk 00:14:08]} {[%emt 00:00:11]} 10.
O-O {[%clk 00:11:18]} {[%emt 00:00:44]} Nh6 {[%clk 00:13:59]} {[%emt 00:00:14]}
11. Re1 {[%clk 00:10:04]} {[%emt 00:01:19]} O-O {[%clk 00:14:00]} {[%emt
00:00:04]} 12. d3 {[%clk 00:08:59]} {[%emt 00:01:10]} Nf5 {[%clk 00:13:25]}
{[%emt 00:00:39]} 13. Bg4 {[%clk 00:08:03]} {[%emt 00:01:01]} Re8 {[%clk
00:13:11]} {[%emt 00:00:19]} 14. Rb1 {[%clk 00:07:18]} {[%emt 00:00:51]} Nd4
{[%clk 00:12:40]} {[%emt 00:00:36]} 15. Bxc8 {[%clk 00:07:04]} {[%emt
00:00:19]} Rxc8 {[%clk 00:12:42]} {[%emt 00:00:02]} 16. Qg4 {[%clk 00:06:23]}
{[%emt 00:00:46]} Nf5 {[%clk 00:08:44]} {[%emt 00:04:04]} 17. Rbd1 {[%clk
00:05:41]} {[%emt 00:00:47]} c5 {[%clk 00:07:21]} {[%emt 00:01:27]} 18. Ba1
{[%clk 00:04:47]} {[%emt 00:01:00]} b6 {[%clk 00:07:16]} {[%emt 00:00:10]} 19.
Qh3 {[%clk 00:04:19]} {[%emt 00:00:32]} Qd7 {[%clk 00:06:37]} {[%emt 00:00:44]}
20. Nd5 {[%clk 00:04:01]} {[%emt 00:00:24]} Bxa1 {[%clk 00:06:33]} {[%emt
00:00:09]} 21. Rxa1 {[%clk 00:04:05]} Qd6 {[%clk 00:06:03]} {[%emt 00:00:35]}
22. Re4 {[%clk 00:03:20]} {[%emt 00:00:49]} Kg7 {[%clk 00:05:42]} {[%emt
00:00:26]} 23. Rae1 {[%clk 00:03:12]} {[%emt 00:00:14]} e6 {[%clk 00:05:34]}
{[%emt 00:00:13]} 24. g4 {[%clk 00:03:04]} {[%emt 00:00:13]} Ne7 {[%clk
00:04:51]} {[%emt 00:00:48]} 25. Nc3 {[%clk 00:02:05]} {[%emt 00:01:04]} Nc6
{[%clk 00:04:10]} {[%emt 00:00:46]} 26. g5 {[%clk 00:01:54]} {[%emt 00:00:17]}
h5 {[%clk 00:03:31]} {[%emt 00:00:42]} 27. gxh6+ {[%clk 00:01:36]} {[%emt
00:00:24]} Kh8 {[%clk 00:03:33]} {[%emt 00:00:03]} 28. h7 {[%clk 00:01:26]}
{[%emt 00:00:15]} Rcd8 {[%clk 00:03:17]} {[%emt 00:00:21]} 29. R1e3 {[%clk
00:01:29]} {[%emt 00:00:02]} Nd4 {[%clk 00:03:10]} {[%emt 00:00:12]} 30. Nd5
{[%clk 00:01:12]} {[%emt 00:00:22]} f5 {[%clk 00:02:56]} {[%emt 00:00:19]} 31.
Re5 {[%clk 00:01:08]} {[%emt 00:00:09]} Qf8 {[%clk 00:01:31]} {[%emt 00:01:30]}
32. Nf4 {[%clk 00:01:11]} {[%emt 00:00:02]} Qg7 {[%clk 00:01:30]} {[%emt
00:00:06]} 33. Rg3 {[%clk 00:01:05]} {[%emt 00:00:11]} g5 {[%clk 00:01:29]}
{[%emt 00:00:06]} 34. Qh5 {[%clk 00:00:57]} {[%emt 00:00:13]} gxf4 {[%clk
00:00:58]} {[%emt 00:00:37]} 35. Rxg7 {[%clk 00:01:00]} Kxg7 {[%clk 00:01:01]}
{[%emt 00:00:01]} 36. Qg5+ {[%clk 00:01:01]} {[%emt 00:00:05]} Kxh7 {[%clk
00:01:05]} 37. Qh4+ {[%clk 00:00:30]} {[%emt 00:00:36]} Kg7 {[%clk 00:01:08]}
38. Kf1 {[%clk 00:00:33]} {[%emt 00:00:02]} f3 {[%clk 00:01:04]} {[%emt
00:00:11]} 39. Qg5+ {[%clk 00:00:20]} {[%emt 00:00:17]} Kf7 {[%clk 00:01:08]}
40. Qh5+ {[%clk 00:00:20]} {[%emt 00:00:05]} Kf6 {[%clk 00:01:11]} 0-1

[Event "Kvibergspelen 2022"]
[Site "Kviberg Park Hotel & Conference, Krutvagen 2, Gothenburg, Sweden"]
[Date "2022.09.30"]
[Round "2.3"]
[White "Abdrlauf, Elham"]
[Black "Myrene, Jon Kare"]
[Result "1-0"]
[TimeControl "15 minutes + 5 seconds per move from move one (Round 1 - 4) / 90 minutes + 30 seconds per move from move one (Round 5 - 8)"]
[WhiteTitle "IM"]
[WhiteFideId "1533533"]
[BlackFideId "1510258"]
[WhiteElo "2487"]
[BlackElo "1990"]

1. e4 {[%clk 00:15:08]} {[%emt 00:00:02]} e5 {[%clk 00:15:06]} {[%emt
00:00:04]} 2. Nc3 {[%clk 00:15:11]} {[%emt 00:00:02]} Nc6 {[%clk 00:14:57]}
{[%emt 00:00:14]} 3. Bc4 {[%clk 00:15:13]} {[%emt 00:00:03]} Nf6 {[%clk
00:14:54]} {[%emt 00:00:07]} 4. d3 {[%clk 00:15:16]} {[%emt 00:00:02]} d6
{[%clk 00:14:51]} {[%emt 00:00:08]} 5. f4 {[%clk 00:15:18]} {[%emt 00:00:04]}
exf4 {[%clk 00:14:07]} {[%emt 00:00:49]} 6. Bxf4 {[%clk 00:15:20]} {[%emt
00:00:02]} Be7 {[%clk 00:13:35]} {[%emt 00:00:37]} 7. Nf3 {[%clk 00:15:07]}
{[%emt 00:00:18]} O-O {[%clk 00:13:31]} {[%emt 00:00:10]} 8. O-O {[%clk
00:15:03]} {[%emt 00:00:07]} Na5 {[%clk 00:12:46]} {[%emt 00:00:52]} 9. Bb3
{[%clk 00:15:00]} {[%emt 00:00:09]} Bg4 {[%clk 00:12:37]} {[%emt 00:00:13]} 10.
d4 {[%clk 00:13:39]} {[%emt 00:01:26]} c6 {[%clk 00:11:42]} {[%emt 00:01:00]}
11. Qd3 {[%clk 00:12:28]} {[%emt 00:01:16]} Qd7 {[%clk 00:10:32]} {[%emt
00:01:15]} 12. Rae1 {[%clk 00:11:31]} {[%emt 00:01:01]} Nxb3 {[%clk 00:10:17]}
{[%emt 00:00:20]} 13. axb3 {[%clk 00:11:35]} {[%emt 00:00:02]} Nh5 {[%clk
00:09:35]} {[%emt 00:00:47]} 14. Bc1 {[%clk 00:10:08]} {[%emt 00:01:32]} f5
{[%clk 00:08:58]} {[%emt 00:00:41]} 15. e5 {[%clk 00:09:43]} {[%emt 00:00:30]}
Bxf3 {[%clk 00:07:20]} {[%emt 00:01:43]} 16. Qxf3 {[%clk 00:09:35]} {[%emt
00:00:13]} g6 {[%clk 00:07:19]} {[%emt 00:00:07]} 17. e6 {[%clk 00:08:19]}
{[%emt 00:01:21]} Qc7 {[%clk 00:06:46]} {[%emt 00:00:38]} 18. Bh6 {[%clk
00:08:14]} {[%emt 00:00:10]} Ng7 {[%clk 00:06:19]} {[%emt 00:00:32]} 19. Ne2
{[%clk 00:07:40]} {[%emt 00:00:38]} Rae8 {[%clk 00:05:00]} {[%emt 00:01:25]} 20.
c3 {[%clk 00:07:07]} {[%emt 00:00:37]} Bf6 {[%clk 00:03:54]} {[%emt 00:01:12]}
21. Nf4 {[%clk 00:07:01]} {[%emt 00:00:10]} Re7 {[%clk 00:03:32]} {[%emt
00:00:27]} 22. Re2 {[%clk 00:06:30]} {[%emt 00:00:37]} Rfe8 {[%clk 00:03:12]}
{[%emt 00:00:25]} 23. Rfe1 {[%clk 00:06:35]} d5 {[%clk 00:03:01]} {[%emt
00:00:15]} 24. Qg3 {[%clk 00:06:14]} {[%emt 00:00:25]} b6 {[%clk 00:01:29]}
{[%emt 00:01:37]} 25. b4 {[%clk 00:05:11]} {[%emt 00:01:09]} Qc8 {[%clk
00:00:57]} {[%emt 00:00:37]} 26. Bg5 {[%clk 00:04:19]} {[%emt 00:00:57]} Bxg5
{[%clk 00:00:38]} {[%emt 00:00:24]} 27. Qxg5 {[%clk 00:04:24]} Nxe6 {[%clk
00:00:37]} {[%emt 00:00:05]} 28. Qf6 {[%clk 00:04:25]} {[%emt 00:00:02]} Rf7
{[%clk 00:00:34]} {[%emt 00:00:10]} 29. Rxe6 {[%clk 00:04:28]} {[%emt
00:00:02]} Rxf6 {[%clk 00:00:10]} {[%emt 00:00:28]} 30. Rxe8+ {[%clk 00:04:31]}
{[%emt 00:00:03]} Qxe8 {[%clk 00:00:14]} {[%emt 00:00:01]} 31. Rxe8+ {[%clk
00:04:35]} Kf7 {[%clk 00:00:19]} 32. Ra8 {[%clk 00:04:38]} {[%emt 00:00:02]} g5
{[%clk 00:00:20]} {[%emt 00:00:04]} 33. Rxa7+ {[%clk 00:04:41]} {[%emt
00:00:02]} 1-0

[Event "Kvibergspelen 2022"]
[Site "Kviberg Park Hotel & Conference, Krutvagen 2, Gothenburg, Sweden"]
[Date "2022.09.30"]
[Round "2.4"]
[White "Kleimark, Anders"]
[Black "Kucuksari, Kaan"]
[Result "0-1"]
[TimeControl "15 minutes + 5 seconds per move from move one (Round 1 - 4) / 90 minutes + 30 seconds per move from move one (Round 5 - 8)"]
[BlackTitle "FM"]
[WhiteFideId "1709968"]
[BlackFideId "6380166"]
[WhiteElo "1976"]
[BlackElo "2482"]

1. d4 {[%clk 00:15:07]} {[%emt 00:00:02]} d5 {[%clk 00:15:04]} {[%emt
00:00:07]} 2. c4 {[%clk 00:15:10]} {[%emt 00:00:02]} e6 {[%clk 00:15:06]}
{[%emt 00:00:03]} 3. Nf3 {[%clk 00:15:07]} {[%emt 00:00:08]} Nf6 {[%clk
00:15:09]} {[%emt 00:00:02]} 4. g3 {[%clk 00:15:09]} {[%emt 00:00:03]} dxc4
{[%clk 00:15:01]} {[%emt 00:00:13]} 5. Bg2 {[%clk 00:15:12]} Nc6 {[%clk
00:14:54]} {[%emt 00:00:13]} 6. Qa4 {[%clk 00:14:48]} {[%emt 00:00:29]} Bb4+
{[%clk 00:14:34]} {[%emt 00:00:26]} 7. Bd2 {[%clk 00:14:39]} {[%emt 00:00:12]}
Nd5 {[%clk 00:14:00]} {[%emt 00:00:40]} 8. Bxb4 {[%clk 00:13:43]} {[%emt
00:01:00]} Ndxb4 {[%clk 00:14:03]} {[%emt 00:00:03]} 9. a3 {[%clk 00:13:27]}
{[%emt 00:00:21]} b5 {[%clk 00:13:12]} {[%emt 00:00:56]} 10. Qd1 {[%clk
00:12:54]} {[%emt 00:00:38]} Nd5 {[%clk 00:13:05]} {[%emt 00:00:12]} 11. a4
{[%clk 00:12:27]} {[%emt 00:00:32]} b4 {[%clk 00:12:39]} {[%emt 00:00:31]} 12.
O-O {[%clk 00:12:00]} {[%emt 00:00:32]} O-O {[%clk 00:12:31]} {[%emt 00:00:13]}
13. Qc2 {[%clk 00:11:10]} {[%emt 00:00:54]} Ba6 {[%clk 00:12:03]} {[%emt
00:00:34]} 14. Nbd2 {[%clk 00:11:00]} {[%emt 00:00:15]} b3 {[%clk 00:11:23]}
{[%emt 00:00:45]} 15. Qc1 {[%clk 00:10:34]} {[%emt 00:00:30]} Ncb4 {[%clk
00:10:58]} {[%emt 00:00:31]} 16. Nxc4 {[%clk 00:08:39]} {[%emt 00:02:01]} Nc2
{[%clk 00:10:58]} {[%emt 00:00:04]} 17. Nce5 {[%clk 00:08:17]} {[%emt
00:00:27]} Bxe2 {[%clk 00:10:46]} {[%emt 00:00:18]} 18. Rb1 {[%clk 00:08:08]}
{[%emt 00:00:14]} f6 {[%clk 00:08:39]} {[%emt 00:02:11]} 19. Ng4 {[%clk
00:07:46]} {[%emt 00:00:26]} Bxf1 {[%clk 00:08:06]} {[%emt 00:00:38]} 20. Bxf1
{[%clk 00:07:39]} {[%emt 00:00:12]} h5 {[%clk 00:08:05]} {[%emt 00:00:07]} 21.
Ne3 {[%clk 00:07:43]} {[%emt 00:00:02]} Ndxe3 {[%clk 00:08:04]} {[%emt
00:00:05]} 22. fxe3 {[%emt 00:00:04]} Qd5 {[%clk 00:07:57]} {[%emt 00:00:09]}
23. Bg2 {[%clk 00:07:07]} {[%emt 00:00:43]} Qe4 {[%clk 00:07:43]} {[%emt
00:00:21]} 24. Ne1 {[%clk 00:06:32]} {[%emt 00:00:40]} Qxe3+ {[%clk 00:07:43]}
{[%emt 00:00:05]} 25. Qxe3 {[%clk 00:06:36]} {[%emt 00:00:01]} Nxe3 {[%clk
00:07:46]} {[%emt 00:00:02]} 26. Bxa8 {[%clk 00:06:40]} {[%emt 00:00:02]} Rxa8
{[%clk 00:07:49]} {[%emt 00:00:02]} 27. Rc1 {[%clk 00:06:27]} {[%emt 00:00:17]}
Rd8 {[%clk 00:07:50]} {[%emt 00:00:04]} 28. Nf3 {[%clk 00:06:14]} {[%emt
00:00:19]} Nc2 {[%clk 00:07:51]} {[%emt 00:00:03]} 29. Rd1 {[%clk 00:06:09]}
{[%emt 00:00:10]} c5 {[%clk 00:07:54]} {[%emt 00:00:02]} 30. Rd3 {[%clk
00:06:09]} {[%emt 00:00:05]} c4 {[%clk 00:07:19]} {[%emt 00:00:40]} 31. Rc3
{[%clk 00:05:46]} {[%emt 00:00:28]} Nxd4 {[%clk 00:07:18]} {[%emt 00:00:06]} 32.
Kf2 {[%clk 00:05:42]} {[%emt 00:00:09]} Nxf3 {[%clk 00:07:18]} {[%emt
00:00:05]} 33. Kxf3 {[%clk 00:05:41]} {[%emt 00:00:06]} Rd4 {[%clk 00:07:21]}
{[%emt 00:00:03]} 34. Ke3 {[%clk 00:05:24]} {[%emt 00:00:22]} e5 {[%clk
00:07:24]} {[%emt 00:00:01]} 35. h3 {[%clk 00:05:20]} {[%emt 00:00:09]} a5
{[%clk 00:07:27]} {[%emt 00:00:02]} 36. Rc1 {[%clk 00:05:17]} {[%emt 00:00:08]}
Kf7 {[%clk 00:07:31]} {[%emt 00:00:02]} 37. Rg1 {[%clk 00:05:10]} {[%emt
00:00:11]} f5 {[%clk 00:07:31]} {[%emt 00:00:05]} 38. Rf1 {[%clk 00:05:02]}
{[%emt 00:00:13]} Ke6 {[%clk 00:07:34]} {[%emt 00:00:02]} 39. Rf2 {[%clk
00:05:00]} {[%emt 00:00:06]} Rd3+ {[%clk 00:07:37]} {[%emt 00:00:03]} 40. Ke2
{[%clk 00:05:03]} {[%emt 00:00:02]} Rxg3 {[%clk 00:07:39]} {[%emt 00:00:03]} 41.
Rh2 {[%clk 00:04:54]} {[%emt 00:00:14]} h4 {[%clk 00:07:41]} {[%emt 00:00:03]}
42. Kd2 {[%clk 00:04:53]} {[%emt 00:00:05]} g5 {[%clk 00:07:45]} {[%emt
00:00:02]} 43. Kc1 {[%clk 00:04:51]} {[%emt 00:00:08]} e4 {[%clk 00:07:45]}
{[%emt 00:00:05]} 44. Kd2 {[%clk 00:04:52]} {[%emt 00:00:03]} f4 {[%clk
00:07:48]} {[%emt 00:00:02]} 45. Kc1 {[%clk 00:04:49]} {[%emt 00:00:08]} e3
{[%clk 00:07:50]} {[%emt 00:00:03]} 46. Kd1 {[%clk 00:04:31]} {[%emt 00:00:24]}
f3 {[%clk 00:07:53]} {[%emt 00:00:01]} 47. Rh1 {[%clk 00:04:27]} {[%emt
00:00:09]} f2 {[%clk 00:07:56]} {[%emt 00:00:03]} 48. Ke2 {[%clk 00:03:38]}
{[%emt 00:00:54]} Rg1 {[%clk 00:07:57]} {[%emt 00:00:04]} 0-1

[Event "Kvibergspelen 2022"]
[Site "Kviberg Park Hotel & Conference, Krutvagen 2, Gothenburg, Sweden"]
[Date "2022.09.30"]
[Round "2.5"]
[White "Hector, Jonny"]
[Black "Muntean, Victor"]
[Result "1-0"]
[TimeControl "15 minutes + 5 seconds per move from move one (Round 1 - 4) / 90 minutes + 30 seconds per move from move one (Round 5 - 8)"]
[WhiteTitle "GM"]
[WhiteFideId "1700090"]
[BlackFideId "1054414"]
[WhiteElo "2454"]
[BlackElo "1968"]

1. e4 {[%clk 00:15:05]} {[%emt 00:00:03]} e5 {[%clk 00:15:08]} {[%emt
00:00:03]} 2. Nf3 {[%clk 00:15:07]} {[%emt 00:00:02]} Nc6 {[%clk 00:15:12]}
{[%emt 00:00:03]} 3. Nc3 {[%clk 00:15:11]} Nf6 {[%clk 00:15:15]} {[%emt
00:00:02]} 4. d4 {[%clk 00:15:14]} {[%emt 00:00:01]} exd4 {[%clk 00:15:18]}
{[%emt 00:00:03]} 5. Nd5 {[%clk 00:15:17]} {[%emt 00:00:01]} Nb4 {[%clk
00:13:27]} {[%emt 00:01:57]} 6. Bc4 {[%clk 00:15:12]} {[%emt 00:00:09]} Nbxd5
{[%clk 00:13:00]} {[%emt 00:00:32]} 7. exd5 {[%clk 00:15:14]} {[%emt 00:00:03]}
Bc5 {[%clk 00:11:29]} {[%emt 00:01:37]} 8. O-O {[%clk 00:15:09]} {[%emt
00:00:09]} O-O {[%clk 00:11:27]} {[%emt 00:00:07]} 9. b4 {[%clk 00:15:11]}
{[%emt 00:00:04]} Bxb4 {[%clk 00:10:53]} {[%emt 00:00:40]} 10. Qxd4 {[%clk
00:15:08]} {[%emt 00:00:07]} d6 {[%clk 00:10:41]} {[%emt 00:00:18]} 11. Bd3
{[%clk 00:14:56]} {[%emt 00:00:16]} Bc5 {[%clk 00:09:36]} {[%emt 00:01:10]} 12.
Qh4 {[%clk 00:14:57]} {[%emt 00:00:03]} h5 {[%clk 00:08:39]} {[%emt 00:01:04]}
13. Bg5 {[%clk 00:14:34]} {[%emt 00:00:27]} Bg4 {[%clk 00:08:17]} {[%emt
00:00:27]} 14. Nd2 {[%clk 00:12:17]} {[%emt 00:02:21]} Bd4 {[%clk 00:07:03]}
{[%emt 00:01:20]} 15. Ne4 {[%clk 00:12:18]} {[%emt 00:00:03]} Qe8 {[%clk
00:06:19]} {[%emt 00:00:50]} 16. Bxf6 {[%clk 00:11:33]} {[%emt 00:00:49]} gxf6
{[%clk 00:05:47]} {[%emt 00:00:39]} 17. c3 {[%clk 00:10:28]} {[%emt 00:01:09]}
f5 {[%clk 00:05:07]} {[%emt 00:00:46]} 18. Qg5+ {[%clk 00:09:57]} {[%emt
00:00:35]} Kh7 {[%clk 00:05:11]} {[%emt 00:00:02]} 19. Ng3 {[%clk 00:09:20]}
{[%emt 00:00:41]} Bxc3 {[%clk 00:03:02]} {[%emt 00:02:14]} 20. Nxf5 {[%clk
00:08:42]} {[%emt 00:00:42]} Qe5 {[%clk 00:02:22]} {[%emt 00:00:46]} 21. Qh6+
{[%clk 00:08:37]} {[%emt 00:00:10]} Kg8 {[%clk 00:02:25]} {[%emt 00:00:03]} 22.
Ne7+ {[%clk 00:08:40]} {[%emt 00:00:02]} Qxe7 {[%clk 00:02:26]} {[%emt
00:00:04]} 23. Qh7# {[%clk 00:08:36]} 1-0